fUST/lending_fUST_20241225
["ID","MTS","AMOUNT","RATE_DAILY","PERIOD"]
[346637573,1735138239298,-505.17764908,0.00010623,2]
[346637574,1735138239307,-1160.86,0.00010624,2]
[346637575,1735138239316,-500.0,0.00010628,2]
[346637576,1735138239329,-500.0,0.00010769,2]
[346637577,1735138239339,-500.0,0.00010769,2]
[346637578,1735138239350,-1582.65,0.00010896,2]
[346637579,1735138239360,-500.0,0.00010897,2]
[346637580,1735138239370,-4607.44,0.00010897,2]
[346637581,1735138239380,-553.47,0.00010897,2]
[346637582,1735138239390,-500.0,0.00010897,2]
[346637583,1735138239399,-500.0,0.00010897,2]
[346637584,1735138239409,-500.0,0.00010897,2]
[346637585,1735138239418,-742.09,0.00010897,2]
[346637586,1735138239428,-500.0,0.00010897,2]
[346637587,1735138239438,-1160.86,0.00010898,2]
[346637588,1735138239448,-1582.65,0.0001117,2]
[346637589,1735138239459,-500.0,0.00011171,2]
[346637590,1735138239470,-4607.44,0.00011171,2]
[346637591,1735138239480,-553.47,0.00011171,2]
[346637592,1735138239490,-444.39401428,0.00011171,2]
[346637593,1735138239500,-500.0,0.00011171,2]
[346637594,1735138239510,-500.0,0.00011171,2]
[346637595,1735138239519,-742.09,0.00011171,2]
[346637596,1735138239529,-324.11,0.00011171,2]
[346637597,1735138239538,-1160.86,0.00011172,2]
[346637598,1735138239550,-1000.0,0.00011317,2]
[346637599,1735138239560,-1000.0,0.00011317,2]
[346637600,1735138239570,-258.313,0.00011431,2]
[346637601,1735138239579,-1582.65,0.00011444,2]
[346637602,1735138239589,-500.0,0.00011445,2]
[346637603,1735138239599,-4607.44,0.00011445,2]
[346637604,1735138239609,-553.47,0.00011445,2]
[346637605,1735138239618,-291.01406357,0.00011445,2]
[346637606,1735138239628,-500.0,0.00011445,2]
[346637607,1735138239638,-742.09,0.00011445,2]
[346637608,1735138239647,-1160.86,0.00011446,2]
[346637609,1735138239657,-1582.65,0.00011718,2]
[346637610,1735138239667,-500.0,0.00011719,2]
[346637611,1735138239677,-4607.44,0.00011719,2]
[346637612,1735138239687,-553.47,0.00011719,2]
[346637613,1735138239696,-500.0,0.00011719,2]
[346637614,1735138239706,-742.09,0.00011719,2]
[346637615,1735138239716,-1160.86,0.0001172,2]
[346637616,1735138239860,-1473.81778682,0.00011992,2]
[346637617,1735138239874,-108.83221318,0.00011992,2]
[346637618,1735138239883,-500.0,0.00011993,2]
[346637619,1735138239893,-4607.44,0.00011993,2]
[346637620,1735138239903,-553.47,0.00011993,2]
[346637621,1735138239912,-500.0,0.00011993,2]
[346637622,1735138239922,-742.09,0.00011993,2]
[346637623,1735138239931,-1160.86,0.00011994,2]
[346637624,1735138239941,-157.65224945,0.00012219,2]
[346637625,1735138239951,-500.0,0.00012267,2]
[346637626,1735138239961,-4607.44,0.00012267,2]
[346637627,1735138239970,-553.47,0.00012267,2]
[346637628,1735138239980,-462.06956033,0.00012267,2]
[346637629,1735138239992,-742.09,0.00012267,2]
[346637630,1735138240001,-1160.86,0.00012268,2]
[346637631,1735138240011,-157.65224941,0.00012275,2]
[346637632,1735138240020,-1500.0,0.00012319,2]
[346637633,1735138240030,-1169.44063258,0.00012319,2]
[346637634,1735138240040,-157.65224941,0.00012331,2]
[346637635,1735138240050,-707.433,0.0001235,2]
[346637636,1735138240061,-157.65224941,0.00012386,2]
[346637637,1735138240070,-157.65224941,0.00012442,2]
[346637638,1735138240080,-500.0,0.00012541,2]
[346637639,1735138240093,-4607.44,0.00012541,2]
[346637640,1735138240103,-553.47,0.00012541,2]
[346637641,1735138240112,-742.09,0.00012541,2]
[346637642,1735138240122,-182.57824152,0.00012541,2]
[346637643,1735138240133,-292.82440779,0.00012541,2]
[346637644,1735138240142,-211.74439906,0.00012542,2]
[346637645,1735138240152,-71292.99552885,0.00012542,2]
[346637646,1735138240165,-758.4281794,0.00012542,2]
[346637647,1735138240177,-24491.65000138,0.00012542,2]
[346637648,1735138240188,-464485.28006751,0.00012542,2]
[346637664,1735138240990,-1582.65,0.00012266,2]
[346637665,1735138241000,-457.165489,0.0001254,2]
[346637666,1735138241012,-1125.484511,0.0001254,2]
[346637667,1735138241021,-586.45703279,0.00012542,2]
[346637668,1735138241033,-27010.59112353,0.00012542,2]
[346637707,1735138243567,-98832.06335565,0.00012542,2]
[346637711,1735138243740,-11047.40993876,0.00012542,2]
[346638008,1735138246765,-500.0,0.00010622,2]
[346638010,1735138246775,-6285.48157226,0.00012542,2]
[346638671,1735138937022,1000.0,0.00023,120]
[346638672,1735138978223,1000.0,0.00023,120]
[346638673,1735138979182,1000.0,0.00023,120]
[346638674,1735138979887,1000.0,0.00023,120]
[346638675,1735138980849,1000.0,0.00023,120]
[346638676,1735138981250,1000.0,0.00023,120]
[346638677,1735138981569,1000.0,0.00023,120]
[346638678,1735138982314,1000.0,0.00023,120]
[346638679,1735138983163,1000.0,0.00023,120]
[346638680,1735138983771,1000.0,0.00023,120]
[346638681,1735138984218,1000.0,0.00023,120]
[346638682,1735138984560,1000.0,0.00023,120]
[346638683,1735138985028,1000.0,0.00023,120]
[346638684,1735138985831,1000.0,0.00023,120]
[346638685,1735138986420,1000.0,0.00023,120]
[346638686,1735139003681,594.04,0.00023,120]
[346638691,1735139244127,-418.23343944,0.00010074,2]
[346638692,1735139244148,-123.3695131,0.00010075,2]
[346638708,1735139285364,200.0,0.00023,120]
[346638711,1735139349151,-296.06035818,0.00010075,2]
[346638712,1735139349175,-662.84402712,0.00010348,2]
[346638718,1735139432968,-63.83597288,0.00010348,2]
[346638719,1735139432980,-300.0,0.00010619,2]
[346638721,1735139432992,-500.0,0.0001062,2]
[346638723,1735139433003,-923.22,0.0001062,2]
[346638725,1735139433014,-212.94402712,0.0001062,2]
[346638727,1735139433028,-287.05597288,0.0001062,2]
[346638729,1735139433040,-331.04522902,0.0001062,2]
[346638731,1735139433052,-500.0,0.0001062,2]
[346638733,1735139433066,-500.0,0.0001062,2]
[346638737,1735139433078,-500.0,0.0001062,2]
[346638740,1735139433090,-500.0,0.0001062,2]
[346638743,1735139433102,-500.0,0.0001062,2]
[346638746,1735139433114,-500.0,0.0001062,2]
[346638748,1735139433126,-500.0,0.0001062,2]
[346638750,1735139433138,-500.0,0.0001062,2]
[346638752,1735139433150,-49.72752388,0.0001062,2]
[346638755,1735139433166,-450.27247612,0.0001062,2]
[346638756,1735139433186,-149.72752388,0.0001062,2]
[346638759,1735139433247,-350.27247612,0.0001062,2]
[346638761,1735139433270,-500.0,0.0001062,2]
[346638763,1735139433293,-500.0,0.0001062,2]
[346638765,1735139433316,-500.0,0.0001062,2]
[346638767,1735139433339,-500.0,0.0001062,2]
[346638769,1735139433361,-500.0,0.0001062,2]
[346638771,1735139433384,-500.0,0.0001062,2]
[346638773,1735139433406,-500.0,0.0001062,2]
[346638775,1735139433430,-500.0,0.0001062,2]
[346638777,1735139433454,-500.0,0.0001062,2]
[346638779,1735139433469,-500.0,0.0001062,2]
[346638782,1735139433482,-158.83827581,0.0001062,2]
[346638784,1735139433494,-421.892045,0.0001062,2]
[346638786,1735139433507,-500.0,0.00010621,2]
[346638788,1735139433519,-500.0,0.00010621,2]
[346638790,1735139433530,-620.30815553,0.00010621,2]
[346638792,1735139433544,-500.0,0.00010621,2]
[346638794,1735139433555,-500.0,0.00010621,2]
[346638796,1735139433568,-500.0,0.00010621,2]
[346638798,1735139433579,-500.0,0.00010621,2]
[346638800,1735139433591,-500.0,0.00010621,2]
[346638803,1735139433603,-500.0,0.00010621,2]
[346638805,1735139433614,-500.0,0.00010621,2]
[346638807,1735139433626,-500.0,0.00010621,2]
[346638809,1735139433637,-500.0,0.00010621,2]
[346638811,1735139433650,-500.0,0.00010621,2]
[346638813,1735139433662,-500.0,0.00010621,2]
[346638815,1735139433673,-500.0,0.00010621,2]
[346638818,1735139433686,-500.0,0.00010621,2]
[346638820,1735139433698,-500.0,0.00010621,2]
[346638822,1735139433709,-500.0,0.00010621,2]
[346638824,1735139433721,-500.0,0.00010621,2]
[346638826,1735139433734,-500.0,0.00010621,2]
[346638829,1735139433746,-500.0,0.00010621,2]
[346638831,1735139433758,-500.0,0.00010621,2]
[346638833,1735139433770,-501.27551973,0.00010621,2]
[346638835,1735139433782,-500.0,0.00010621,2]
[346638837,1735139433794,-501.79216944,0.00010621,2]
[346638839,1735139433806,-500.0,0.00010621,2]
[346638841,1735139433820,-500.0,0.00010621,2]
[346638843,1735139433832,-500.0,0.00010621,2]
[346638846,1735139433846,-500.0,0.00010621,2]
[346638848,1735139433857,-500.0,0.00010621,2]
[346638850,1735139433868,-500.0,0.00010621,2]
[346638852,1735139433878,-500.0,0.00010621,2]
[346638854,1735139433889,-500.0,0.00010621,2]
[346638856,1735139433899,-500.0,0.00010621,2]
[346638858,1735139433909,-500.0,0.00010621,2]
[346638860,1735139433919,-500.0,0.00010621,2]
[346638862,1735139433929,-500.0,0.00010621,2]
[346638864,1735139433940,-500.0,0.00010621,2]
[346638866,1735139433951,-500.0,0.00010621,2]
[346638868,1735139433962,-500.0,0.00010621,2]
[346638870,1735139433973,-500.0,0.00010621,2]
[346638872,1735139433986,-500.0,0.00010621,2]
[346638875,1735139433998,-500.0,0.00010621,2]
[346638877,1735139434010,-500.0,0.00010621,2]
[346638879,1735139434022,-519.09397784,0.00010621,2]
[346638881,1735139434033,-500.0,0.00010621,2]
[346638883,1735139434043,-500.0,0.00010621,2]
[346638885,1735139434053,-500.0,0.00010621,2]
[346638887,1735139434063,-500.0,0.00010621,2]
[346638889,1735139434074,-500.0,0.00010621,2]
[346638892,1735139434085,-2687.67,0.00010621,2]
[346638894,1735139434097,-476.81941378,0.00010621,2]
[346638896,1735139434108,-500.0,0.00010621,2]
[346638898,1735139434120,-376.6304869,0.00010621,2]
[346638900,1735139434131,-500.0,0.00010621,2]
[346638902,1735139434142,-500.0,0.00010621,2]
[346638905,1735139434154,-500.0,0.00010621,2]
[346638907,1735139434164,-500.0,0.00010621,2]
[346638909,1735139434175,-500.0,0.00010621,2]
[346638911,1735139434185,-402.58648839,0.00010621,2]
[346638913,1735139434196,-502.65,0.00010621,2]
[346638915,1735139434206,-289.25014844,0.00010621,2]
[346638917,1735139434217,-500.0,0.00010621,2]
[346638919,1735139434228,-726.68,0.00010622,2]
[346638921,1735139434239,-923.22,0.00010894,2]
[346638923,1735139434251,-500.0,0.00010894,2]
[346638926,1735139434261,-500.0,0.00010894,2]
[346638928,1735139434273,-450.76,0.00010894,2]
[346638930,1735139434285,-209.41989641,0.00010894,2]
[346638932,1735139434296,-500.0,0.00010894,2]
[346638934,1735139434307,-500.0,0.00010894,2]
[346638936,1735139434320,-500.0,0.00010894,2]
[346638938,1735139434331,-500.0,0.00010894,2]
[346638940,1735139434341,-500.0,0.00010894,2]
[346638942,1735139434352,-500.0,0.00010894,2]
[346638944,1735139434363,-500.0,0.00010895,2]
[346638947,1735139434374,-2687.67,0.00010895,2]
[346638949,1735139434384,-502.65,0.00010895,2]
[346638951,1735139434394,-500.0,0.00010895,2]
[346638953,1735139434404,-726.68,0.00010896,2]
[346638955,1735139434415,-200.0,0.00011,2]
[346638957,1735139434426,-923.22,0.00011168,2]
[346638959,1735139434436,-500.0,0.00011168,2]
[346638962,1735139434447,-500.0,0.00011168,2]
[346638964,1735139434457,-500.0,0.00011168,2]
[346638966,1735139434470,-500.0,0.00011168,2]
[346638968,1735139434480,-500.0,0.00011168,2]
[346638970,1735139434491,-500.0,0.00011168,2]
[346638972,1735139434502,-500.0,0.00011168,2]
[346638974,1735139434513,-500.0,0.00011168,2]
[346638976,1735139434523,-558.24,0.00011169,2]
[346638979,1735139434533,-2687.67,0.00011169,2]
[346638981,1735139434545,-502.65,0.00011169,2]
[346638983,1735139434556,-500.0,0.00011169,2]
[346638985,1735139434569,-726.68,0.0001117,2]
[346638987,1735139434579,-923.22,0.00011442,2]
[346638989,1735139434589,-500.0,0.00011442,2]
[346638991,1735139434600,-500.0,0.00011442,2]
[346638993,1735139434610,-297.49,0.00011442,2]
[346638995,1735139434621,-500.0,0.00011443,2]
[346639013,1735139434785,-2687.67,0.00011443,2]
[346639015,1735139434795,-502.65,0.00011443,2]
[346639017,1735139434805,-500.0,0.00011443,2]
[346639020,1735139434816,-726.68,0.00011444,2]
[346639022,1735139434826,-206.65,0.0001156,2]
[346639024,1735139434835,-420.0,0.00011674,2]
[346639026,1735139434845,-923.22,0.00011716,2]
[346639028,1735139434854,-500.0,0.00011716,2]
[346639030,1735139434864,-500.0,0.00011716,2]
[346639032,1735139434873,-2687.67,0.00011717,2]
[346639034,1735139434882,-502.65,0.00011717,2]
[346639036,1735139434891,-726.68,0.00011718,2]
[346639038,1735139434901,-500.0,0.0001195,2]
[346639040,1735139434911,-923.22,0.0001199,2]
[346639042,1735139434920,-500.0,0.0001199,2]
[346639044,1735139434929,-500.0,0.0001199,2]
[346639045,1735139434938,-2687.67,0.00011991,2]
[346639048,1735139434949,-502.65,0.00011991,2]
[346639050,1735139434958,-726.68,0.00011992,2]
[346639052,1735139434968,-328.33669318,0.00012112,2]
[346639054,1735139434978,-9382.05156833,0.00012118,2]
[346639056,1735139434987,-500.0,0.00012243,2]
[346639058,1735139434997,-500.3532463,0.00012243,2]
[346639059,1735139435006,-923.22,0.00012264,2]
[346639061,1735139435016,-500.0,0.00012264,2]
[346639064,1735139435026,-500.0,0.00012264,2]
[346639066,1735139435035,-2687.67,0.00012265,2]
[346639067,1735139435044,-502.65,0.00012265,2]
[346639069,1735139435053,-726.68,0.00012266,2]
[346639072,1735139435064,-678.068,0.0001235,2]
[346639074,1735139435073,-6869.52155785,0.00012454,2]
[346639076,1735139435083,-1000.0,0.00012498,2]
[346639078,1735139435093,-923.22,0.00012538,2]
[346639079,1735139435102,-500.0,0.00012538,2]
[346639081,1735139435112,-500.0,0.00012538,2]
[346639083,1735139435121,-2687.67,0.00012539,2]
[346639085,1735139435131,-502.65,0.00012539,2]
[346639087,1735139435140,-726.68,0.0001254,2]
[346639089,1735139435150,-18838.88466939,0.00012542,2]
[346639091,1735139435159,-153.13,0.00012716,2]
[346639093,1735139435168,-204.97708545,0.00012783,2]
[346639095,1735139435177,-7844.24373818,0.00012784,2]
[346639097,1735139435186,-1000.0,0.00012791,2]
[346639100,1735139435196,-1593.65551068,0.000128,2]
[346639102,1735139435205,-923.22,0.00012812,2]
[346639104,1735139435215,-500.0,0.00012812,2]
[346639106,1735139435224,-500.0,0.00012812,2]
[346639108,1735139435233,-2687.67,0.00012813,2]
[346639110,1735139435242,-502.65,0.00012813,2]
[346639112,1735139435252,-726.68,0.00012814,2]
[346639114,1735139435262,-587.0,0.00012833,2]
[346639116,1735139435271,-1874.13,0.000129,2]
[346639118,1735139435280,-594.85533704,0.000129,2]
[346639120,1735139435290,-594.85533703,0.000129,2]
[346639122,1735139435300,-594.85533703,0.000129,2]
[346639124,1735139435309,-416662.22298303,0.00013,2]
[346639126,1735139435320,-500.0,0.00013,2]
[346639128,1735139435329,-628.0,0.00013,2]
[346639130,1735139435338,-923.22,0.00013086,2]
[346639132,1735139435347,-349.67948265,0.00013086,2]
[346639134,1735139435357,-500.0,0.00013086,2]
[346639136,1735139435366,-2687.67,0.00013087,2]
[346639138,1735139435375,-502.65,0.00013087,2]
[346639140,1735139435384,-726.68,0.00013088,2]
[346639142,1735139435394,-1200.0,0.00013256,2]
[346639144,1735139435403,-2500.0,0.00013311,2]
[346639146,1735139435412,-15947.330209,0.00013333,2]
[346639148,1735139435422,-923.22,0.0001336,2]
[346639150,1735139435431,-500.0,0.0001336,2]
[346639152,1735139435441,-2687.67,0.00013361,2]
[346639154,1735139435450,-502.65,0.00013361,2]
[346639156,1735139435459,-726.68,0.00013362,2]
[346639158,1735139435474,-500.0,0.00013383,2]
[346639160,1735139435484,-162.95247505,0.00013452,2]
[346639162,1735139435493,-1500.0,0.000135,2]
[346639164,1735139435502,-162.95247505,0.00013534,2]
[346639166,1735139435511,-300.0,0.000136,2]
[346639168,1735139435521,-300.0,0.000136,3]
[346639170,1735139435530,-290.0,0.000136,2]
[346639172,1735139435540,-85981.61403191,0.000136,2]
[346639174,1735139435549,-162.95247505,0.00013616,2]
[346639176,1735139435558,-923.22,0.00013634,2]
[346639178,1735139435569,-500.0,0.00013634,2]
[346639180,1735139435579,-151.0,0.00013635,2]
[346639182,1735139435588,-2687.67,0.00013635,2]
[346639184,1735139435597,-151.0,0.00013635,2]
[346639186,1735139435606,-502.65,0.00013635,2]
[346639188,1735139435615,-81766.48856047,0.00013635,5]
[346639190,1735139435624,-726.68,0.00013636,2]
[346639192,1735139435633,-1000.0,0.00013698,2]
[346639194,1735139435642,-1107.5649309,0.00013698,2]
[346639196,1735139435651,-500.0,0.00013698,2]
[346639198,1735139435661,-500.0,0.00013698,2]
[346639200,1735139435670,-500.0,0.00013698,2]
[346639202,1735139435680,-500.0,0.00013698,2]
[346639204,1735139435690,-500.0,0.00013698,2]
[346639206,1735139435699,-552.59579627,0.00013698,2]
[346639208,1735139435708,-500.0,0.00013698,2]
[346639210,1735139435718,-500.0,0.00013698,2]
[346639212,1735139435727,-500.0,0.00013698,2]
[346639213,1735139435737,-500.0,0.00013698,2]
[346639216,1735139435747,-500.01512762,0.00013698,2]
[346639218,1735139435756,-162.95247505,0.00013699,2]
[346639220,1735139435766,-21206.6668945,0.00013699,2]
[346639222,1735139435775,-151.0,0.00013699,2]
[346639224,1735139435785,-151.0,0.00013699,2]
[346639226,1735139435794,-1703.594489,0.00013699,2]
[346639228,1735139435803,-255.0,0.00013699,2]
[346639230,1735139435813,-500.0,0.00013699,2]
[346639232,1735139435822,-500.0,0.00013699,2]
[346639234,1735139435832,-500.0,0.00013699,2]
[346639236,1735139435841,-500.0,0.00013699,2]
[346639238,1735139435851,-500.0,0.00013699,2]
[346639240,1735139435860,-236.02,0.0001373,2]
[346639242,1735139435870,-607.06307563,0.00013746,2]
[346639244,1735139435879,-594.85533703,0.00013761,2]
[346639246,1735139435888,-162.95247505,0.00013781,2]
[346639248,1735139435898,-1500.0,0.00013793,2]
[346639250,1735139435907,-344.07186544,0.000138,2]
[346639252,1735139435917,-162.95247505,0.00013863,2]
[346639254,1735139435926,-161.01078522,0.00013899,2]
[346639256,1735139435935,-170.52806889,0.00013899,2]
[346639258,1735139435944,-211.74439904,0.000139,2]
[346639260,1735139435954,-20413.43711991,0.000139,2]
[346639535,1735139438699,-203.79465974,0.00013699,2]
[346639537,1735139438709,-35370.31099201,0.000139,2]
[346639558,1735139438931,-21863.42782507,0.000139,2]
[346639559,1735139438943,-66849.1086625,0.000139,2]
[346639560,1735139438952,-151.0,0.000139,2]
[346639561,1735139438961,-151.0,0.000139,2]
[346639562,1735139438970,-174.028011,0.000139,2]
[346639563,1735139438979,-257.237748,0.000139,2]
[346639564,1735139438989,-500.0,0.00013908,2]
[346639565,1735139438998,-2687.67,0.00013909,2]
[346639566,1735139439007,-502.65,0.00013909,2]
[346639567,1735139439016,-726.68,0.0001391,2]
[346639568,1735139439026,-162.95247505,0.00013945,2]
[346639569,1735139439035,-400.0,0.00013973,2]
[346639570,1735139439045,-290.5009658,0.00014,5]
[346639571,1735139439054,-600.0,0.00014,2]
[346639572,1735139439063,-1307.10830157,0.00014,2]
[346639573,1735139439073,-501.26587838,0.00014,2]
[346639574,1735139439082,-162.95247505,0.00014027,2]
[346639575,1735139439092,-1013.59881596,0.00014036,2]
[346639576,1735139439101,-500.0,0.00014052,2]
[346639577,1735139439110,-164.765337,0.000141,7]
[346639578,1735139439119,-823.0,0.00014107,2]
[346639579,1735139439128,-162.95247505,0.0001411,2]
[346639580,1735139439137,-500.0,0.00014182,2]
[346639581,1735139439146,-2687.67,0.00014183,2]
[346639582,1735139439156,-502.65,0.00014183,2]
[346639583,1735139439165,-726.68,0.00014184,2]
[346639584,1735139439174,-162.95247505,0.00014192,2]
[346639585,1735139439184,-2687.67,0.00014456,2]
[346639586,1735139439193,-500.0,0.00014456,2]
[346639587,1735139439203,-502.65,0.00014456,2]
[346639588,1735139439212,-726.68,0.00014458,2]
[346639589,1735139439221,-1901.65273247,0.00014497,2]
[346639590,1735139439231,-200.000001,0.000145,2]
[346639591,1735139439240,-2687.67,0.0001473,2]
[346639592,1735139439250,-248.68854073,0.0001473,2]
[346639593,1735139439259,-502.65,0.0001473,2]
[346639594,1735139439269,-726.68,0.00014732,2]
[346639595,1735139439278,-500.0,0.00014755,2]
[346639596,1735139439287,-4638.2351054,0.00014784,2]
[346639617,1735139441015,-581.13,0.0001062,2]
[346639618,1735139441025,-581.13,0.00010894,2]
[346639619,1735139441034,-581.13,0.00011168,2]
[346639620,1735139441044,-581.13,0.00011442,2]
[346639621,1735139441053,-581.13,0.00011716,2]
[346639622,1735139441062,-581.13,0.0001199,2]
[346639623,1735139441072,-581.13,0.00012264,2]
[346639624,1735139441081,-581.13,0.00012538,2]
[346639625,1735139441090,-581.13,0.00012812,2]
[346639626,1735139441100,-3206.00863278,0.00014784,2]
[346639627,1735139441109,-1143.25929191,0.00014797,2]
[346639628,1735139441119,-594.85533703,0.00014842,2]
[346639629,1735139441128,-151.0,0.000149,2]
[346639630,1735139441138,-277.4110886,0.00014917,2]
[346639631,1735139441147,-200.75493189,0.00014917,2]
[346639632,1735139441156,-150.11,0.00014917,2]
[346639633,1735139441165,-200.85677112,0.00014917,2]
[346639634,1735139441175,-200.57248153,0.00014917,2]
[346639635,1735139441184,-500.0,0.00014917,2]
[346639636,1735139441193,-150.11,0.00014917,2]
[346639637,1735139441202,-201.24159531,0.00014917,2]
[346639638,1735139441211,-200.20039793,0.00014917,2]
[346639639,1735139441220,-208.7641903,0.00014932,2]
[346639672,1735139445165,-581.13,0.00013086,2]
[346639673,1735139445174,-581.13,0.0001336,2]
[346639674,1735139445183,-581.13,0.00013634,2]
[346639675,1735139445192,-581.13,0.00013908,2]
[346639676,1735139445201,-581.13,0.00014182,2]
[346639677,1735139445210,-581.13,0.00014456,2]
[346639678,1735139445219,-20.0917531,0.00014932,2]
[346639679,1735139445228,-1200.0,0.00014932,2]
[346639680,1735139445238,-152.0,0.00014971,2]
[346639681,1735139445247,-39790.12880127,0.00014988,2]
[346639707,1735139446782,-500.0,0.00010621,2]
[346639708,1735139446792,-3989.39640849,0.00014988,2]
[346639709,1735139446802,-4393.62440879,0.00014992,2]
[346639710,1735139446845,-707.06011919,0.00014992,2]
[346639711,1735139446856,-9458.69655,0.00014992,2]
[346639712,1735139446868,-16989.83999999,0.00014992,2]
[346639718,1735140442121,-256.19661514,0.0001062,2]
[346639719,1735140446275,-102.34604206,0.0001062,2]
[346639720,1735140446296,-400.0,0.0001062,2]
[346639721,1735140446319,-416.70227794,0.00010621,2]
[346639722,1735140509518,424.57030358,0.0001,7]
[346639751,1735140631995,-300.0,0.0001114,2]
[346639752,1735140632006,-300.0,0.0001114,2]
[346639753,1735140632015,-500.0,0.00011141,2]
[346639754,1735140632024,-500.0,0.00011141,2]
[346639755,1735140632034,-895.89,0.00011141,2]
[346639757,1735140632043,-500.0,0.00011141,2]
[346639759,1735140632053,-14417.02005038,0.00011142,2]
[346639761,1735140632064,-8435.04514658,0.00011142,2]
[346639763,1735140632076,-2047.93480304,0.00011142,2]
[346639764,1735140632085,-198.2983928,0.00011168,2]
[346639765,1735140632097,-500.0,0.00011415,2]
[346639767,1735140632106,-895.89,0.00011415,2]
[346639769,1735140632116,-500.0,0.00011415,2]
[346639770,1735140632125,-217.26514046,0.00011689,2]
[346639853,1735140638081,-282.73485954,0.00011689,2]
[346639854,1735140638091,-895.89,0.00011689,2]
[346639855,1735140638101,-500.0,0.00011689,2]
[346639856,1735140638110,-500.0,0.00011963,2]
[346639857,1735140638120,-895.89,0.00011963,2]
[346639858,1735140638130,-500.0,0.00011963,2]
[346639859,1735140638140,-500.0,0.00012237,2]
[346639860,1735140638149,-895.89,0.00012237,2]
[346639861,1735140638159,-500.0,0.00012237,2]
[346639862,1735140638169,-319.47159137,0.0001224,2]
[346639863,1735140638181,-100.52840863,0.0001224,2]
[346639864,1735140638191,-363.07160137,0.000125,2]
[346639894,1735140644083,-471.96519949,0.000125,2]
[346639895,1735140644093,-500.0,0.00012511,2]
[346639896,1735140644103,-895.89,0.00012511,2]
[346639897,1735140644113,-500.0,0.00012511,2]
[346639898,1735140644124,-165.32,0.00012543,2]
[346639899,1735140644134,-1039.04963986,0.00012633,2]
[346639900,1735140644144,-500.0,0.00012785,2]
[346639901,1735140644154,-895.89,0.00012785,2]
[346639902,1735140644164,-500.0,0.00012785,2]
[346639903,1735140644174,-6275.39499055,0.00012789,2]
[346639904,1735140644183,-500.0,0.00012999,2]
[346639905,1735140644193,-338.08480224,0.00012999,2]
[346639906,1735140644204,-583.29772206,0.00012999,2]
[346639907,1735140644214,-1686.72,0.00013,2]
[346639908,1735140644224,-152.0,0.00013024,2]
[346639909,1735140644234,-500.0,0.00013059,2]
[346639910,1735140644245,-895.89,0.00013059,2]
[346639911,1735140644254,-521.33189511,0.00013059,2]
[346639912,1735140644264,-500.0,0.00013273,2]
[346639913,1735140644275,-868.7481997,0.00013287,2]
[346639915,1735140644299,-331.2518003,0.00013287,2]
[346639916,1735140644310,-344.33981613,0.00013332,2]
[346639917,1735140644319,-211.36977328,0.00013332,2]
[346639918,1735140644329,-500.0,0.00013333,2]
[346639919,1735140644339,-292.16256957,0.00013333,2]
[346639932,1735140646182,-603.72743043,0.00013333,2]
[346639933,1735140646192,-153.0,0.00013415,2]
[346639934,1735140646202,-587.0,0.00013448,2]